fUSD/lending_fUSD_20240422
["ID","MTS","AMOUNT","RATE_DAILY","PERIOD"]
[323191690,1713797447006,-532.11,0.00013698,2]
[323191691,1713797447016,-395.16,0.00013698,2]
[323191692,1713797447026,-488.46527477,0.00013698,2]
[323191693,1713797447035,-500.0,0.00013698,2]
[323191694,1713797447045,-500.0,0.00013698,2]
[323191695,1713797447054,-500.0,0.00013698,2]
[323191696,1713797447063,-500.0,0.00013698,2]
[323191697,1713797447072,-2308.67,0.00013698,2]
[323191698,1713797447082,-4698.45,0.00013698,2]
[323191699,1713797447091,-500.0,0.00013698,2]
[323191700,1713797447100,-2077.11,0.00013698,2]
[323191701,1713797447110,-771.72,0.00013698,2]
[323191702,1713797447119,-500.0,0.00013698,2]
[323191703,1713797447128,-1149.61,0.00013698,2]
[323191704,1713797447137,-500.0,0.00013698,2]
[323191705,1713797447147,-969.06,0.00013698,2]
[323191706,1713797447156,-500.0,0.00013698,2]
[323191707,1713797447165,-712.0,0.00013698,2]
[323191708,1713797447175,-3207.73,0.00013698,2]
[323191709,1713797447185,-1369.62,0.00013698,2]
[323191710,1713797447194,-500.0,0.00013698,2]
[323191711,1713797447204,-1819.53,0.00013698,2]
[323191712,1713797447214,-5208.32,0.00013698,2]
[323191713,1713797447223,-655.71,0.00013698,2]
[323191714,1713797447233,-1414.2,0.00013698,2]
[323191715,1713797447243,-2936.96,0.00013698,2]
[323191716,1713797447252,-2067.8,0.00013698,2]
[323191717,1713797447262,-500.0,0.00013698,2]
[323191718,1713797447271,-500.0,0.00013698,2]
[323191719,1713797447280,-500.0,0.00013698,2]
[323191720,1713797447289,-69179.36,0.00013698,2]
[323191721,1713797447299,-811.57,0.00013698,2]
[323191722,1713797447308,-500.0,0.00013698,2]
[323191723,1713797447317,-500.0,0.00013698,2]
[323191724,1713797447326,-500.0,0.00013698,2]
[323191725,1713797447335,-1787.37,0.00013698,2]
[323191726,1713797447344,-1603.89,0.00013698,2]
[323191727,1713797447353,-952.4,0.00013698,2]
[323191728,1713797447363,-686.32,0.00013698,2]
[323191729,1713797447372,-5373.75,0.00013698,2]
[323191730,1713797447381,-905.67,0.00013698,2]
[323191731,1713797447391,-6921.97,0.00013698,2]
[323191732,1713797447400,-500.0,0.00013698,2]
[323191733,1713797447409,-628.49,0.00013698,2]
[323191734,1713797447420,-1983.07,0.00013698,2]
[323191735,1713797447429,-518.83,0.00013698,2]
[323191736,1713797447439,-500.0,0.00013698,2]
[323191737,1713797447447,-10845.59,0.00013698,2]
[323191738,1713797447457,-3656.94,0.00013698,2]
[323191739,1713797447468,-515.26,0.00013698,2]
[323191740,1713797447478,-500.0,0.00013698,2]
[323191741,1713797447487,-500.0,0.00013698,2]
[323191742,1713797447497,-500.0,0.00013698,2]
[323191743,1713797447506,-5769.73,0.00013698,2]
[323191744,1713797447515,-500.0,0.00013698,2]
[323191745,1713797447524,-1345.69,0.00013698,2]
[323191746,1713797447533,-1704.44,0.00013698,2]
[323191747,1713797447543,-5597.29,0.00013698,2]
[323191748,1713797447553,-2331.63,0.00013698,2]
[323191749,1713797447562,-843.0,0.00013698,2]
[323191750,1713797447576,-659.35,0.00013698,2]
[323191751,1713797447586,-500.0,0.00013698,2]
[323191752,1713797447595,-500.0,0.00013698,2]
[323191753,1713797447604,-594.36210294,0.00013698,2]
[323191754,1713797447614,-5196.97,0.00013698,2]
[323191755,1713797447623,-661.43,0.00013698,2]
[323191756,1713797447633,-2206.69,0.00013698,2]
[323191757,1713797447642,-500.0,0.00013698,2]
[323191758,1713797447651,-1484.46,0.00013698,2]
[323191759,1713797447661,-2091.4,0.00013698,2]
[323191760,1713797447670,-5463.52,0.00013698,2]
[323191761,1713797447680,-1380.04,0.00013698,2]
[323191762,1713797447689,-10383.69,0.00013698,2]
[323191763,1713797447698,-1474.61,0.00013698,2]
[323191764,1713797447707,-5275.76,0.00013698,2]
[323191765,1713797447717,-9323.5,0.00013698,2]
[323191766,1713797447726,-500.0,0.00013698,2]
[323191767,1713797447736,-500.0,0.00013698,2]
[323191768,1713797447745,-500.0,0.00013698,2]
[323191769,1713797447755,-2347.11,0.00013698,2]
[323191770,1713797447764,-401.73822044,0.00013698,2]
[323191771,1713797447773,-500.0,0.00013698,2]
[323191772,1713797447783,-1047.22,0.00013698,2]
[323191773,1713797447795,-500.0,0.00013698,2]
[323191774,1713797447804,-500.0,0.00013698,2]
[323191775,1713797447814,-3549.56,0.00013698,2]
[323191776,1713797447823,-890.51,0.00013698,2]
[323191777,1713797447833,-584.96,0.00013698,2]
[323191778,1713797447843,-500.0,0.00013698,2]
[323191779,1713797447853,-1550.13,0.00013698,2]
[323191780,1713797447862,-500.0,0.00013698,2]
[323191781,1713797447870,-527.08,0.00013698,2]
[323191782,1713797447879,-3055.38,0.00013698,2]
[323191783,1713797447889,-729.2,0.00013698,2]
[323191784,1713797447898,-7007.74,0.00013698,2]
[323191785,1713797447908,-1728.24,0.00013698,2]
[323191786,1713797447917,-2244.29,0.00013698,2]
[323191787,1713797447927,-500.0,0.00013698,2]
[323191788,1713797447936,-500.0,0.00013698,2]
[323191789,1713797448182,-747.6,0.00013698,2]
[323191790,1713797448192,-500.0,0.00013698,2]
[323191791,1713797448202,-500.0,0.00013698,2]
[323191792,1713797448212,-3390.77,0.00013698,2]
[323191793,1713797448221,-1168.79,0.00013698,2]
[323191794,1713797448231,-1925.74,0.00013698,2]
[323191795,1713797448240,-10994.45,0.00013698,2]
[323191796,1713797448250,-500.0,0.00013698,2]
[323191797,1713797448262,-784.66,0.00013698,2]
[323191798,1713797448272,-679.03,0.00013698,2]
[323191799,1713797448282,-34637.6,0.00013698,2]
[323191800,1713797448292,-516.71,0.00013698,2]
[323191801,1713797448301,-12295.13,0.00013698,2]
[323191802,1713797448310,-500.0,0.00013698,2]
[323191803,1713797448319,-897.24,0.00013698,2]
[323191804,1713797448329,-820.66,0.00013698,2]
[323191805,1713797448338,-500.0,0.00013698,2]
[323191806,1713797448348,-6065.67,0.00013698,2]
[323191807,1713797448357,-500.0,0.00013698,2]
[323191808,1713797448367,-667.8,0.00013698,2]
[323191809,1713797448377,-500.0,0.00013698,2]
[323191810,1713797448387,-545.75,0.00013698,2]
[323191811,1713797448396,-2731.54,0.00013698,2]
[323191812,1713797448407,-500.0,0.00013698,2]
[323191813,1713797448418,-2860.73,0.00013698,2]
[323191814,1713797448427,-1194.7,0.00013698,2]
[323191815,1713797448437,-500.0,0.00013698,2]
[323191816,1713797448446,-500.0,0.00013698,2]
[323191817,1713797448456,-1803.55,0.00013698,2]
[323191818,1713797448466,-830.47,0.00013698,2]
[323191819,1713797448475,-500.0,0.00013698,2]
[323191820,1713797448485,-64780.77,0.00013698,2]
[323191821,1713797448495,-5651.1,0.00013698,2]
[323191822,1713797448505,-2104.78,0.00013698,2]
[323191823,1713797448516,-79675.89,0.00013698,2]
[323191824,1713797448527,-500.0,0.00013698,2]
[323191825,1713797448537,-500.0,0.00013698,2]
[323191826,1713797448548,-500.0,0.00013698,2]
[323191827,1713797448557,-500.0,0.00013698,2]
[323191828,1713797448566,-443.99598148,0.00013698,2]
[323191829,1713797448578,-500.0,0.00013698,2]
[323191830,1713797448588,-658.09,0.00013698,2]
[323191831,1713797448598,-500.0,0.00013698,2]
[323191832,1713797448609,-2020.93,0.00013698,2]
[323191833,1713797448618,-500.0,0.00013698,2]
[323191834,1713797448627,-500.0,0.00013698,2]
[323191835,1713797448637,-1807.6,0.00013698,2]
[323191836,1713797448646,-500.0,0.00013698,2]
[323191837,1713797448656,-736.9,0.00013698,2]
[323191838,1713797448668,-6354.44,0.00013698,2]
[323191839,1713797448680,-764.39,0.00013698,2]
[323191840,1713797448690,-500.0,0.00013698,2]
[323191841,1713797448701,-1658.98,0.00013698,2]
[323191842,1713797448711,-708.16,0.00013698,2]
[323191843,1713797448723,-3844.78,0.00013698,2]
[323191844,1713797448735,-917.07,0.00013698,2]
[323191845,1713797448746,-615.31,0.00013698,2]
[323191846,1713797448756,-3079.34,0.00013698,2]
[323191847,1713797448766,-500.0,0.00013698,2]
[323191848,1713797448775,-500.0,0.00013698,2]
[323191849,1713797448784,-651.75,0.00013698,2]
[323191850,1713797448794,-986.78,0.00013698,2]
[323191851,1713797448803,-2305.84,0.00013698,2]
[323191852,1713797448813,-3070.14,0.00013698,2]
[323191853,1713797448822,-1019.32,0.00013698,2]
[323191854,1713797448831,-500.0,0.00013698,2]
[323191855,1713797448840,-373.35797674,0.00013698,2]
[323191856,1713797448849,-988.29,0.00013698,2]
[323191857,1713797448859,-4505.91,0.00013698,2]
[323191858,1713797448868,-611.51,0.00013698,2]
[323191859,1713797448878,-6183.11,0.00013698,2]
[323191860,1713797448887,-500.0,0.00013698,2]
[323191861,1713797448897,-500.0,0.00013698,2]
[323191862,1713797448906,-500.0,0.00013698,2]
[323191863,1713797448915,-500.0,0.00013698,2]
[323191864,1713797448925,-500.0,0.00013698,2]
[323191865,1713797448934,-11533.71,0.00013698,2]
[323191866,1713797448944,-1145.7,0.00013698,2]
[323191867,1713797448953,-1641.84,0.00013698,2]
[323191868,1713797448963,-500.0,0.00013698,2]
[323191869,1713797448972,-500.0,0.00013698,2]
[323191870,1713797448981,-500.0,0.00013698,2]
[323191871,1713797448991,-1233.77,0.00013698,2]
[323191872,1713797449000,-1159.21,0.00013698,2]
[323191873,1713797449010,-1325.3,0.00013698,2]
[323191874,1713797449019,-500.0,0.00013698,2]
[323191875,1713797449029,-1164.27,0.00013698,2]
[323191876,1713797449039,-4822.32,0.00013698,2]
[323191877,1713797449049,-14377.72,0.00013698,2]
[323191878,1713797449058,-6053.6,0.00013698,2]
[323191879,1713797449067,-11251.61,0.00013698,2]
[323191880,1713797449076,-500.0,0.00013698,2]
[323191881,1713797449086,-951.27,0.00013698,2]
[323191882,1713797449095,-32709.43,0.00013698,2]
[323191883,1713797449104,-1562.31,0.00013698,2]
[323191884,1713797449114,-500.0,0.00013698,2]
[323191885,1713797449123,-500.0,0.00013698,2]
[323191886,1713797449132,-500.0,0.00013698,2]
[323191887,1713797449143,-1086.39,0.00013698,2]
[323191888,1713797449153,-500.0,0.00013698,2]
[323191889,1713797449163,-4887.97,0.00013698,2]
[323191890,1713797449173,-5943.65,0.00013698,2]
[323191891,1713797449182,-1338.67,0.00013698,2]
[323191892,1713797449191,-500.0,0.00013698,2]
[323191893,1713797449201,-1780.6,0.00013698,2]
[323191894,1713797449211,-1090.31,0.00013698,2]
[323191895,1713797449220,-867.74,0.00013698,2]
[323191896,1713797449230,-4768.44,0.00013698,2]
[323191897,1713797449240,-813.01,0.00013698,2]
[323191898,1713797449249,-7790.44,0.00013698,2]
[323191899,1713797449259,-1221.45,0.00013698,2]
[323191900,1713797449269,-1937.81,0.00013698,2]
[323191901,1713797449279,-2727.88,0.00013698,2]
[323191902,1713797449289,-500.0,0.00013698,2]
[323191903,1713797449301,-46764.76,0.00013698,2]
[323191904,1713797449311,-8189.99,0.00013698,2]
[323191905,1713797449321,-2865.01,0.00013698,2]
[323191906,1713797449331,-549.58,0.00013698,2]
[323191907,1713797449340,-514.2,0.00013698,2]
[323191908,1713797449350,-1456.95,0.00013698,2]
[323191909,1713797449360,-500.0,0.00013698,2]
[323191910,1713797449369,-500.0,0.00013698,2]
[323191911,1713797449379,-7127.21,0.00013698,2]
[323191912,1713797449388,-500.0,0.00013698,2]
[323191913,1713797449399,-3215.57,0.00013698,2]
[323191914,1713797449409,-1438.96,0.00013698,2]
[323191915,1713797449419,-8203.4,0.00013698,2]
[323191916,1713797449428,-2563.41,0.00013698,2]
[323191917,1713797449437,-500.0,0.00013698,2]
[323191918,1713797449446,-1220.07,0.00013698,2]
[323191919,1713797449456,-1067.05,0.00013698,2]
[323191920,1713797449466,-673.67,0.00013698,2]
[323191921,1713797449475,-500.0,0.00013698,2]
[323191922,1713797449485,-500.0,0.00013698,2]
[323191923,1713797449494,-2801.0,0.00013698,2]
[323191924,1713797449503,-4371.4,0.00013698,2]
[323191925,1713797449513,-500.0,0.00013698,2]
[323191926,1713797449522,-844.72,0.00013698,2]
[323191927,1713797449532,-7232.17,0.00013698,2]
[323191928,1713797449542,-500.0,0.00013698,2]
[323191929,1713797449552,-500.0,0.00013698,2]
[323191930,1713797449564,-500.0,0.00013698,2]
[323191931,1713797449576,-1935.55,0.00013698,2]
[323191932,1713797449586,-6999.61,0.00013698,2]
[323191933,1713797449596,-556.01,0.00013698,2]
[323191934,1713797449606,-979.3,0.00013698,2]
[323191935,1713797449617,-14864.94,0.00013698,2]
[323191936,1713797449626,-10066.49,0.00013698,2]
[323191937,1713797449636,-505.4,0.00013698,2]
[323191938,1713797449645,-3496.47,0.00013698,2]
[323191939,1713797449654,-1521.83,0.00013698,2]
[323191940,1713797449664,-500.0,0.00013698,2]
[323191941,1713797449675,-1524.33,0.00013698,2]
[323191942,1713797449684,-2158.9,0.00013698,2]
[323191943,1713797449694,-2346.41,0.00013698,2]
[323191944,1713797449704,-500.0,0.00013698,2]
[323191945,1713797449714,-500.0,0.00013698,2]
[323191946,1713797449725,-500.0,0.00013698,2]
[323191947,1713797449735,-5254.57,0.00013698,2]
[323191948,1713797449745,-2027.35,0.00013698,2]
[323191949,1713797449756,-500.0,0.00013698,2]
[323191950,1713797449766,-500.0,0.00013698,2]
[323191951,1713797449775,-13479.64,0.00013698,2]
[323191952,1713797449786,-500.0,0.00013698,2]
[323191953,1713797449799,-500.0,0.00013698,2]
[323191954,1713797449808,-4866.68,0.00013698,2]
[323191955,1713797449818,-1885.97,0.00013698,2]
[323191956,1713797449830,-2749.09,0.00013698,2]
[323191957,1713797449839,-2633.93,0.00013698,2]
[323191958,1713797449849,-5300.49,0.00013698,2]
[323191959,1713797449858,-625.34,0.00013698,2]
[323191960,1713797449868,-500.0,0.00013698,2]
[323191961,1713797449878,-500.0,0.00013698,2]
[323191962,1713797449887,-5260.34,0.00013698,2]
[323191963,1713797449897,-500.0,0.00013698,2]
[323191964,1713797449907,-1044.08,0.00013698,2]
[323191965,1713797449917,-1540.55,0.00013698,2]
[323191966,1713797449927,-4252.28,0.00013698,2]
[323191967,1713797449936,-500.0,0.00013698,2]
[323191968,1713797449946,-894.47,0.00013698,2]
[323191969,1713797449955,-500.0,0.00013698,2]
[323191970,1713797449965,-500.0,0.00013698,2]
[323191971,1713797449974,-504.1,0.00013698,2]
[323191972,1713797449983,-500.0,0.00013698,2]
[323191973,1713797449993,-1813.46,0.00013698,2]
[323191974,1713797450002,-2213.32,0.00013698,2]
[323191975,1713797450011,-596.13,0.00013698,2]
[323191976,1713797450021,-839.93,0.00013698,2]
[323191977,1713797450030,-9486.21,0.00013698,2]
[323191978,1713797450039,-1002.67,0.00013698,2]
[323191979,1713797450051,-1037.9,0.00013698,2]
[323191980,1713797450060,-4761.65,0.00013698,2]
[323191981,1713797450070,-1348.75,0.00013698,2]
[323191982,1713797450079,-4693.38,0.00013698,2]
[323191983,1713797450088,-500.0,0.00013698,2]
[323191984,1713797450097,-1110.47,0.00013698,2]
[323191985,1713797450106,-500.0,0.00013698,2]
[323191986,1713797450115,-500.0,0.00013698,2]
[323191987,1713797450125,-500.0,0.00013698,2]
[323191988,1713797450134,-2003.35,0.00013698,2]
[323191989,1713797450143,-4012.83,0.00013698,2]
[323191990,1713797450153,-1178.6,0.00013698,2]
[323191991,1713797450162,-6308.19,0.00013698,2]
[323191992,1713797450172,-11121.19,0.00013698,2]
[323191993,1713797450182,-13403.19,0.00013698,2]
[323191994,1713797450191,-7567.9,0.00013698,2]
[323191995,1713797450200,-2249.41,0.00013698,2]
[323191996,1713797450210,-500.0,0.00013698,2]
[323191997,1713797450219,-722.9,0.00013698,2]
[323191998,1713797450229,-500.0,0.00013698,2]
[323191999,1713797450238,-500.0,0.00013698,2]
[323192000,1713797450248,-2661.64,0.00013698,2]
[323192001,1713797450258,-500.0,0.00013698,2]
[323192002,1713797450267,-500.0,0.00013698,2]
[323192003,1713797450276,-2137.6,0.00013698,2]
[323192004,1713797450287,-500.0,0.00013698,2]
[323192005,1713797450300,-500.0,0.00013698,2]
[323192006,1713797450310,-500.0,0.00013698,2]
[323192007,1713797450319,-500.0,0.00013698,2]
[323192008,1713797450329,-500.0,0.00013698,2]
[323192009,1713797450338,-500.0,0.00013698,2]
[323192010,1713797450347,-500.0,0.00013698,2]
[323192011,1713797450357,-618.93875623,0.00013698,2]
[323192012,1713797450366,-500.0,0.00013698,2]
[323192013,1713797450376,-341.05881401,0.00013698,2]
[323192014,1713797450385,-2786.13,0.00013698,2]
[323192015,1713797450394,-4533.07,0.00013698,2]
[323192016,1713797450404,-14256.45,0.00013698,2]
[323192017,1713797450413,-500.0,0.00013698,2]
[323192018,1713797450423,-500.0,0.00013698,2]
[323192019,1713797450433,-5081.1,0.00013698,2]
[323192020,1713797450443,-500.0,0.00013698,2]
[323192021,1713797450453,-500.0,0.00013698,2]
[323192022,1713797450462,-2003.06,0.00013698,2]
[323192023,1713797450472,-2440.14,0.00013698,2]
[323192024,1713797450481,-500.0,0.00013698,2]
[323192025,1713797450491,-500.0,0.00013698,2]
[323192026,1713797450595,-500.0,0.00013698,2]
[323192027,1713797450605,-500.0,0.00013698,2]
[323192028,1713797450615,-15461.58,0.00013698,2]
[323192029,1713797450624,-1819.4,0.00013698,2]
[323192030,1713797450633,-500.0,0.00013698,2]
[323192031,1713797450642,-500.0,0.00013698,2]
[323192032,1713797450652,-8191.28,0.00013698,2]
[323192033,1713797450662,-500.0,0.00013698,2]
[323192034,1713797450671,-1932.99,0.00013698,2]
[323192035,1713797450680,-500.0,0.00013698,2]
[323192036,1713797450690,-12934.42,0.00013698,2]
[323192037,1713797450699,-500.0,0.00013698,2]
[323192038,1713797450709,-607.9058632,0.00013698,2]
[323192039,1713797450718,-556.84,0.00013698,2]
[323192040,1713797450727,-3301.45,0.00013698,2]
[323192041,1713797450737,-879.25,0.00013698,2]
[323192042,1713797450746,-500.0,0.00013698,2]
[323192043,1713797450755,-5258.15,0.00013698,2]
[323192044,1713797450764,-500.0,0.00013698,2]
[323192045,1713797450773,-2132.9,0.00013698,2]
[323192046,1713797450782,-641.55116941,0.00013698,2]
[323192047,1713797450791,-569.03,0.00013698,2]
[323192048,1713797450801,-523.51867542,0.00013698,2]
[323192049,1713797450810,-500.0,0.00013698,2]
[323192050,1713797450819,-500.0,0.00013698,2]
[323192051,1713797450829,-2994.32,0.00013698,2]
[323192052,1713797450838,-500.0,0.00013698,2]
[323192053,1713797450847,-500.0,0.00013698,2]
[323192054,1713797450856,-8841.47,0.00013698,2]
[323192055,1713797450866,-1378.88,0.00013698,2]
[323192056,1713797450876,-500.0,0.00013698,2]
[323192057,1713797450885,-500.0,0.00013698,2]
[323192058,1713797450894,-626.26,0.00013698,2]
[323192059,1713797450903,-500.0,0.00013698,2]
[323192060,1713797450913,-178.8,0.00013698,2]
[323192061,1713797450922,-787.61,0.00013698,2]
[323192062,1713797450931,-14139.56,0.00013698,2]
[323192063,1713797450940,-3605.85,0.00013698,2]
[323192064,1713797450950,-500.0,0.00013698,2]
[323192065,1713797450959,-500.0,0.00013698,2]
[323192066,1713797450968,-2961.16,0.00013698,2]
[323192067,1713797450977,-500.0,0.00013698,2]
[323192068,1713797450986,-2146.41,0.00013698,2]
[323192069,1713797450996,-1045.01,0.00013698,2]
[323192070,1713797451005,-4363.81,0.00013698,2]
[323192071,1713797451014,-500.0,0.00013698,2]
[323192072,1713797451023,-500.0,0.00013698,2]
[323192073,1713797451032,-1166.01,0.00013698,2]
[323192074,1713797451043,-1461.88,0.00013698,2]
[323192075,1713797451052,-932.02,0.00013698,2]
[323192076,1713797451062,-500.0,0.00013698,2]
[323192077,1713797451071,-2792.31,0.00013698,2]
[323192078,1713797451080,-878.31,0.00013698,2]
[323192079,1713797451090,-500.0,0.00013698,2]
[323192080,1713797451099,-11007.8,0.00013698,2]
[323192081,1713797451109,-500.0,0.00013698,2]
[323192082,1713797451118,-761.46,0.00013698,2]
[323192083,1713797451128,-5311.23,0.00013698,2]
[323192084,1713797451137,-8334.91,0.00013698,2]
[323192085,1713797451146,-2088.65,0.00013698,2]
[323192086,1713797451155,-9648.21,0.00013698,2]
[323192087,1713797451164,-16486.37,0.00013698,2]
[323192088,1713797451174,-866.35,0.00013698,2]
[323192089,1713797451183,-570.06,0.00013698,2]
[323192090,1713797451192,-516.62,0.00013698,2]
[323192091,1713797451202,-500.0,0.00013698,2]
[323192092,1713797451211,-884.07,0.00013698,2]
[323192093,1713797451222,-590.26,0.00013698,2]
[323192094,1713797451231,-690.88,0.00013698,2]
[323192095,1713797451241,-500.0,0.00013698,2]
[323192096,1713797451250,-500.0,0.00013698,2]
[323192097,1713797451259,-500.0,0.00013698,2]
[323192098,1713797451269,-500.0,0.00013698,2]
[323192099,1713797451278,-529.35,0.00013698,2]
[323192100,1713797451287,-500.0,0.00013698,2]
[323192101,1713797451297,-20609.88,0.00013698,2]
[323192102,1713797451306,-500.0,0.00013698,2]
[323192103,1713797451315,-1499.59,0.00013698,2]
[323192104,1713797451324,-500.0,0.00013698,2]
[323192105,1713797451334,-500.0,0.00013698,2]
[323192106,1713797451343,-7536.04,0.00013698,2]
[323192107,1713797451353,-500.0,0.00013698,2]
[323192108,1713797451362,-549.0,0.00013698,2]
[323192109,1713797451371,-1005.19,0.00013698,2]
[323192110,1713797451380,-956.77,0.00013698,2]
[323192111,1713797451390,-500.0,0.00013698,2]
[323192112,1713797451399,-1124.74,0.00013698,2]
[323192113,1713797451409,-1962.06,0.00013698,2]
[323192114,1713797451418,-500.0,0.00013698,2]
[323192115,1713797451427,-500.0,0.00013698,2]
[323192116,1713797451438,-24313.82,0.00013698,2]
[323192117,1713797451447,-1581.64,0.00013698,2]
[323192118,1713797451457,-605.77,0.00013698,2]
[323192119,1713797451467,-500.0,0.00013698,2]
[323192120,1713797451476,-500.0,0.00013698,2]
[323192121,1713797451486,-500.0,0.00013698,2]
[323192122,1713797451495,-6514.52,0.00013698,2]
[323192123,1713797451505,-1629.24,0.00013698,2]
[323192124,1713797451514,-2127.44,0.00013698,2]
[323192125,1713797451523,-500.0,0.00013698,2]
[323192126,1713797451532,-1066.43,0.00013698,2]
[323192127,1713797451541,-5810.5,0.00013698,2]
[323192128,1713797451552,-995.98,0.00013698,2]
[323192129,1713797451562,-775.45,0.00013698,2]
[323192130,1713797451572,-500.0,0.00013698,2]
[323192131,1713797451581,-666.69,0.00013698,2]
[323192132,1713797451590,-3048.4,0.00013698,2]
[323192133,1713797451599,-500.0,0.00013698,2]
[323192134,1713797451609,-745.1,0.00013698,2]
[323192135,1713797451618,-1810.4,0.00013698,2]
[323192136,1713797451627,-632.83,0.00013698,2]
[323192137,1713797451637,-1624.65,0.00013698,2]
[323192138,1713797451646,-500.0,0.00013699,2]
[323192139,1713797451656,-450.03,0.00013699,2]
[323192140,1713797451665,-200.0,0.00013699,2]
[323192141,1713797451674,-527.0,0.00013699,2]
[323192142,1713797451683,-1663.0,0.00013699,2]
[323192143,1713797451693,-400.0,0.000137,5]
[323192144,1713797451701,-155.92,0.000137,2]
[323192145,1713797451710,-500.0,0.00013706,2]
[323192146,1713797451720,-500.0,0.00013715,2]
[323192147,1713797451729,-500.0,0.00013724,2]
[323192148,1713797451739,-500.0,0.00013733,2]
[323192149,1713797451748,-500.0,0.00013742,2]
[323192150,1713797451757,-500.0,0.0001375,2]
[323192151,1713797451767,-500.0,0.00013759,2]
[323192152,1713797451776,-500.0,0.00013768,2]
[323192153,1713797451785,-500.0,0.00013777,2]
[323192154,1713797451795,-200.0,0.00013778,2]
[323192155,1713797451806,-400.0,0.000138,5]
[323192156,1713797451816,-200.0,0.00013873,2]
[323192157,1713797451825,-1000.0,0.00013873,2]
[323192158,1713797451834,-500.0,0.00013873,2]
[323192159,1713797451844,-200.0,0.00013873,2]
[323192160,1713797451854,-1000.0,0.00013887,2]
[323192161,1713797451863,-500.0,0.00013887,2]
[323192162,1713797451873,-3445.62770183,0.000139,2]
[323192163,1713797451882,-400.0,0.000139,5]
[323192164,1713797451891,-179.82277204,0.000139,2]
[323192165,1713797451901,-210.0,0.00013921,2]
[323192166,1713797451910,-800.0,0.00013945,2]
[323192167,1713797451919,-1150196.382207,0.0001397,2]
[323192168,1713797451928,-3323.96023733,0.0001397,2]
[323192169,1713797451937,-500.0,0.00013972,2]
[323192170,1713797451946,-500.0,0.00013972,2]
[323192171,1713797451956,-500.0,0.00013972,2]
[323192172,1713797451965,-500.0,0.00013972,2]
[323192173,1713797451974,-500.0,0.00013972,2]
[323192174,1713797451982,-374.64646464,0.00013972,2]
[323192175,1713797451992,-500.0,0.00013972,2]
[323192176,1713797452001,-1282.14,0.00013972,2]
[323192177,1713797452009,-638.56291665,0.00013972,2]
[323192178,1713797452019,-1659.96,0.00013972,2]
[323192179,1713797452028,-958.7,0.00013972,2]
[323192180,1713797452038,-659.62,0.00013972,2]
[323192181,1713797452050,-500.0,0.00013972,2]
[323192182,1713797452060,-500.0,0.00013972,2]
[323192183,1713797452069,-500.0,0.00013972,2]
[323192184,1713797452078,-500.0,0.00013972,2]
[323192185,1713797452087,-350.50730495,0.00013972,2]
[323192186,1713797452097,-161.90466835,0.00013972,2]
[323192187,1713797452107,-772.49,0.00013972,2]
[323192188,1713797452116,-543.59,0.00013972,2]
[323192189,1713797452126,-500.0,0.00013972,2]